bitfinex/quotes_ETHUSD_20230118
["timestamp","ask_amount","ask_price","bid_price","bid_amount"]
[1674069926001,1.0,1544.3,1544.1,0.07136729]
[1674069926195,12.95168,1544.2,1544.1,0.07136729]
[1674069926405,13.01592054,1544.2,1544.1,0.07136729]
[1674069926614,15.71264459,1544.2,1544.1,0.07136729]
[1674069926876,22.18848459,1544.2,1544.1,0.07136729]
[1674069927086,19.49176054,1544.2,1544.1,0.07136729]
[1674069928717,0.06424054,1544.2,1544.1,1.04736729]
[1674069928976,6.47584,1544.2,1544.1,0.07136729]
[1674069929191,6.54008054,1544.2,1544.1,0.07136729]
[1674069931274,0.06424054,1544.2,1544.1,0.07136729]
[1674069931464,21.99922054,1544.3,1544.1,0.07136729]
[1674069931682,24.81989292,1544.3,1544.1,0.07136729]
[1674069932786,3.29174759,1544.2,1544.1,0.07136729]
[1674069933101,17.98042759,1544.2,1544.0,0.07411921]
[1674069933271,6.82079035,1544.1,1544.0,0.07411921]
[1674069933467,14.8148033,1544.1,1544.0,0.07411921]
[1674069933687,1.8622833,1544.1,1544.0,0.07411921]
[1674069934045,0.06424054,1544.2,1544.0,0.07411921]
[1674069934233,29.21450063,1544.3,1544.0,0.07411921]
[1674069934451,0.23,1544.2,1544.0,0.07411921]
[1674069934776,9.97953482,1544.2,1544.0,0.07411921]
[1674069934935,10.04377536,1544.2,1544.0,0.07411921]
[1674069936044,13.33552295,1544.2,1544.0,0.07411921]
[1674069936234,4.7909953,1544.1,1544.0,0.07411921]
[1674069936576,17.9735153,1544.1,1544.0,0.07411921]
[1674069936918,20.83948491,1544.1,1544.0,0.07411921]
[1674069937615,6.39096491,1544.1,1544.0,0.07411921]
[1674069937984,3.58923584,1544.1,1544.0,0.07411921]
[1674069938195,3.5249953,1544.1,1544.0,0.07411921]
[1674069939078,0.00324771,1544.1,1544.0,0.07411921]
[1674069939414,3.33786536,1544.2,1544.0,0.07411921]
[1674069939560,0.33378654,1544.1,1544.0,0.07411921]
[1674069939765,1.33378654,1544.1,1544.0,0.07411921]
[1674069940036,0.33378654,1544.1,1544.0,0.07411921]
[1674069940644,1.33378654,1544.1,1544.0,0.07411921]
[1674069941063,17.57805413,1544.1,1544.0,0.07411921]
[1674069941328,17.87229467,1544.1,1544.0,0.07411921]
[1674069942272,19.37729467,1544.1,1544.0,0.07411921]
[1674069942681,24.34855467,1544.1,1544.0,0.07411921]
[1674069942852,17.87554238,1544.1,1544.0,0.07411921]
[1674069943068,16.87554238,1544.1,1544.0,0.07411921]
[1674069943437,10.39928238,1544.1,1544.0,0.07411921]
[1674069943745,11.39928238,1544.1,1544.0,0.07411921]
[1674069943951,16.87554238,1544.1,1544.0,0.07411921]
[1674069945375,10.39928238,1544.1,1544.0,0.07411921]
[1674069945831,16.87554238,1544.1,1544.0,0.07411921]
[1674069947630,0.39802708,1544.1,1544.0,0.07411921]
[1674069947843,11.31005536,1544.2,1544.0,0.07411921]
[1674069949056,4.83386536,1544.2,1544.0,0.07411921]
[1674069949303,3.27362482,1544.2,1544.0,0.07411921]
[1674069950572,18.41014054,1544.3,1544.2,1.19966118]
[1674069950889,0.06424054,1544.3,1544.2,1.19966118]
[1674069951105,0.7419121,1544.4,1544.2,1.19966118]
[1674069951313,3.96941915,1544.4,1544.2,1.19966118]
[1674069952259,3.29174759,1544.4,1544.2,1.19966118]
[1674069953264,14.51875054,1544.5,1544.2,1.19661382]
[1674069953482,8.04395054,1544.5,1544.2,1.19661382]
[1674069954151,9.34646115,1544.5,1544.2,1.19661382]
[1674069954307,10.84346115,1544.5,1544.2,1.19661382]
[1674069955606,8.03595054,1544.5,1544.2,1.19661382]
[1674069957444,6.53895054,1544.5,1544.2,1.19661382]
[1674069957632,8.04095054,1544.5,1544.2,1.19661382]
[1674069961011,14.51572054,1544.5,1544.2,1.19661382]
[1674069961748,24.28223813,1544.5,1544.2,1.19661382]
[1674069961929,3.42822381,1544.4,1544.2,1.19661382]
[1674069962146,8.90343381,1544.4,1544.2,1.19661382]
[1674069962483,20.22904959,1544.4,1544.2,1.19661382]
[1674069962698,3.29174759,1544.3,1544.2,1.19661382]
[1674069963008,24.44900759,1544.3,1544.2,1.19661382]
[1674069963258,31.00435809,1544.3,1544.2,1.19661382]
[1674069966593,31.0076058,1544.3,1544.2,1.19661382]
[1674069967686,32.5146058,1544.3,1544.2,1.19661382]
[1674069968842,39.3356058,1544.3,1544.2,1.19661382]
[1674069973808,37.8346058,1544.3,1544.2,1.19661382]
[1674069974333,38.85130077,1544.3,1544.2,1.19661382]
[1674069977210,32.47470404,1544.3,1544.2,1.19661382]
[1674069977379,0.06424054,1544.3,1544.2,1.19661382]
[1674069977588,0.06424054,1544.4,1544.2,7.67245382]
[1674069977853,7.21604446,1544.6,1544.2,6.53923011]
[1674069978074,10.50779205,1544.6,1544.2,9.56591312]
[1674069978531,9.83034813,1544.6,1544.2,9.56591312]
[1674069978739,3.35598813,1544.6,1544.2,16.04175312]
[1674069978955,0.74168446,1544.7,1544.3,1.60417531]
[1674069979109,0.74168446,1544.8,1544.4,12.94984]
[1674069979326,0.67744392,1544.8,1544.5,1.294984]
[1674069979530,1.6934362,1544.9,1544.5,7.769294]
[1674069979747,1.6934362,1544.9,1544.5,7.83268411]
[1674069980178,0.67735497,1544.9,1544.5,7.83268411]
[1674069980583,4.6934362,1544.9,1544.5,7.83268411]
[1674069980790,0.67714837,1544.8,1544.5,7.83268411]
[1674069981001,0.67714837,1544.8,1544.5,1.35837411]
[1674069981256,0.23,1544.7,1544.4,6.54031011]
[1674069981480,5.0331365,1544.8,1544.4,13.01308011]
[1674069981793,5.0331365,1544.8,1544.5,1.30130801]
[1674069981794,4.0331365,1544.8,1544.5,1.30130801]
[1674069981940,3.96889596,1544.8,1544.5,1.30130801]
[1674069984700,0.67714837,1544.8,1544.5,14.25044801]
[1674069985016,3.74138891,1544.9,1544.6,1.4250448]
[1674069985248,6.29174759,1544.9,1544.6,1.4250448]
[1674069985459,6.35598813,1544.9,1544.6,1.4250448]
[1674069985644,3.35598813,1544.9,1544.7,0.14250448]
[1674069985842,3.29174759,1544.9,1544.7,0.14250448]
[1674069986481,3.29174759,1544.9,1544.7,0.14024168]
[1674069988291,3.29174759,1544.9,1544.6,1.4250448]
[1674069989057,3.29174759,1544.9,1544.5,14.31583812]
[1674069989058,3.29174759,1544.9,1544.5,14.31556812]
[1674069989240,3.29174759,1544.9,1544.5,14.31356812]
[1674069989725,3.29174759,1544.9,1544.5,7.83900812]
[1674069989934,9.76468759,1544.9,1544.5,7.83900812]
[1674069990180,9.82892813,1544.9,1544.5,7.83900812]
[1674069993487,9.82892813,1544.9,1544.6,0.78390081]
[1674069993813,9.82892813,1544.9,1544.5,7.84100812]
[1674069994023,16.30186813,1544.9,1544.5,0.06339011]
[1674069994286,16.30186813,1544.9,1544.4,0.06339011]
[1674069994287,6.4739,1544.7,1544.4,0.06339011]
[1674069994494,6.53814054,1544.7,1544.3,6.53843011]
[1674069994742,6.53814054,1544.7,1544.3,8.61140012]
[1674069995542,16.30378813,1544.7,1544.3,0.06339011]
[1674069995720,16.30378813,1544.7,1544.2,20.73033011]
[1674069997434,0.06424054,1544.7,1544.2,28.71317011]
[1674069997640,9.76760054,1544.8,1544.3,2.87131701]
[1674069997814,13.05934813,1544.8,1544.4,6.47479]
[1674069998023,13.05934813,1544.8,1544.4,6.53818011]
[1674069999441,9.76760054,1544.8,1544.4,6.53818011]
[1674069999657,3.06424054,1544.8,1544.4,21.72435982]
[1674069999963,3.06424054,1544.9,1544.4,21.72435982]
[1674070000177,40.77466485,1545.0,1544.4,32.26405982]
[1674070000333,3.35598814,1545.0,1544.6,12.94796]
[1674070000543,3.2917476,1545.0,1544.6,13.01135011]
[1674070001083,4.2917476,1545.0,1544.6,13.01135011]
[1674070001247,3.2917476,1545.0,1544.6,15.07659187]
[1674070001747,3.2917476,1545.0,1544.6,21.55075187]
[1674070002046,1e-08,1545.0,1544.6,21.55075187]
[1674070002292,0.23000001,1545.0,1544.6,21.55075187]
[1674070003231,1e-08,1545.0,1544.6,23.05775187]
[1674070003406,1e-08,1545.0,1544.8,7.97832]
[1674070003617,1e-08,1545.0,1544.8,8.04171011]
[1674070004405,1e-08,1545.0,1544.8,6.53671011]
[1674070005402,1e-08,1545.0,1544.8,20.99035011]
[1674070005628,1e-08,1545.0,1544.9,2.09903501]
[1674070005949,1e-08,1545.0,1544.9,8.57194501]
[1674070006156,1e-08,1545.0,1544.9,8.63533512]
[1674070006674,1e-08,1545.0,1544.9,2.16242512]
[1674070006963,1e-08,1545.0,1544.9,2.09903501]
[1674070007497,1e-08,1545.0,1544.8,0.06539011]
[1674070007709,1e-08,1545.0,1544.7,17.78077536]
[1674070011140,1.00000001,1545.0,1544.7,10.50099011]
[1674070011356,6.47264001,1545.0,1544.7,10.50099011]
[1674070011645,6.53688055,1545.0,1544.7,10.50099011]
[1674070012605,13.00952055,1545.0,1544.7,10.50099011]
[1674070012766,14.97108466,1545.0,1544.7,10.50099011]
[1674070013189,21.44372466,1545.0,1544.7,10.50099011]
[1674070015542,24.73547225,1545.0,1544.7,10.50099011]
[1674070015711,3.52174759,1544.9,1544.7,0.06339011]
[1674070015926,3.52174759,1544.9,1544.5,0.06339011]
[1674070015927,23.96688235,1544.8,1544.5,0.06339011]
[1674070016276,3.23,1544.7,1544.4,5.06339011]
[1674070016433,19.74548,1544.6,1544.4,0.06339011]
[1674070016637,19.80972054,1544.6,1544.2,7.67469011]
[1674070017423,19.80972054,1544.6,1544.2,0.06339011]
[1674070017602,19.80972054,1544.6,1544.1,8.72329019]
[1674070017953,19.80972054,1544.6,1544.2,1.12451877]
[1674070024203,19.48672054,1544.6,1544.2,1.12451877]
[1674070029929,19.48672054,1544.6,1544.1,23.6778866]
[1674070030092,19.48672054,1544.6,1544.1,22.99924652]
[1674070030302,19.48672054,1544.6,1544.2,1.12452904]
[1674070030545,19.42519,1544.4,1544.1,11.05449011]
[1674070030756,18.81470529,1544.4,1544.1,11.05249011]
[1674070031402,18.81470529,1544.4,1544.2,1.0]
[1674070031618,6.47416,1544.6,1544.4,1.13521296]
[1674070031930,6.54016,1544.6,1544.4,1.13521296]
[1674070034961,13.01432,1544.6,1544.4,1.13521296]
[1674070035423,19.48848,1544.6,1544.4,1.13521296]
[1674070036567,20.55674,1544.5,1544.4,1.13521296]
[1674070036725,22.11118876,1544.5,1544.4,1.13521296]
[1674070036934,25.40293635,1544.5,1544.4,1.13521296]
[1674070037724,28.40293635,1544.5,1544.4,1.13521296]
[1674070041626,25.11118876,1544.5,1544.4,1.13521296]
[1674070042590,18.63660876,1544.5,1544.4,1.13521296]
[1674070042871,16.24516,1544.5,1544.4,1.13521296]
[1674070043885,0.066,1544.5,1544.4,1.13521296]
[1674070044094,6.47443,1544.6,1544.4,1.13521296]
[1674070044095,6.54043,1544.6,1544.4,1.13521296]
[1674070044413,0.066,1544.6,1544.4,1.13521296]
[1674070044623,13.01388,1544.7,1544.5,1.9925213]
[1674070045784,13.01388,1544.7,1544.5,2.9925213]
[1674070046082,0.066,1544.7,1544.5,2.9925213]
[1674070046306,6.53955,1544.8,1544.5,4.4995213]
[1674070046516,6.53955,1544.8,1544.6,1.29925213]
[1674070047341,0.066,1544.8,1544.7,1.493]
[1674070047586,1e-08,1545.0,1544.7,10.40037921]
[1674070047791,1e-08,1545.0,1544.8,1.498]
[1674070048194,1e-08,1545.0,1544.8,2.498]
[1674070048408,6.47249001,1545.0,1544.7,2.49902932]
[1674070048721,6.53849001,1545.0,1544.8,0.24990293]
[1674070048962,6.53849001,1545.0,1544.7,0.92663921]
[1674070049127,19.48347001,1545.0,1544.7,0.92663921]
[1674070049335,19.48347001,1545.0,1544.6,12.27424224]
[1674070049336,19.48347001,1545.0,1544.6,10.76724224]
[1674070049866,6.70303,1544.9,1544.6,10.76724224]
[1674070050069,6.76903,1544.9,1544.6,10.76724224]
[1674070050280,0.296,1544.9,1544.7,1.0]
[1674070050491,0.23,1544.9,1544.7,2.17672422]
[1674070050821,0.06600001,1545.0,1544.7,3.68372422]
[1674070051036,1e-08,1545.0,1544.8,0.36837242]
[1674070051242,0.23000001,1545.0,1544.8,0.36837242]
[1674070052600,6.70251001,1545.0,1544.8,0.36837242]
[1674070052823,6.76851001,1545.0,1544.8,0.36837242]
[1674070053264,6.76851001,1545.0,1544.8,0.36603268]
[1674070053431,0.29600001,1545.0,1544.8,0.36603268]
[1674070053646,0.23000001,1545.0,1544.8,0.36603268]
[1674070054910,1e-08,1545.0,1544.8,0.36603268]
[1674070055478,12.94500001,1545.0,1544.7,1.24211433]
[1674070055812,13.01100001,1545.0,1544.7,2.17672422]
[1674070056859,13.01100001,1545.0,1544.7,1.17672422]
[1674070057288,13.01100001,1545.0,1544.7,2.17672422]
[1674070059334,13.00737003,1545.0,1544.7,2.17672422]
[1674070060008,13.00737003,1545.0,1544.7,1.17672422]
[1674070060220,6.53486003,1545.0,1544.7,2.17672422]
[1674070061384,6.53486003,1545.0,1544.8,1.0]
[1674070061638,0.066,1545.0,1544.8,2.71567242]
[1674070061790,0.13076289,1545.1,1544.9,1.507]
[1674070062000,0.13076289,1545.1,1545.0,1.507]
[1674070062252,0.13076289,1545.1,1545.0,1.6577]
[1674070062631,0.13076289,1545.1,1545.0,2.6577]
[1674070064110,0.13076289,1545.1,1545.0,8.13019]
[1674070064317,0.13076289,1545.1,1545.0,1.72309011]
[1674070064527,0.13076289,1545.1,1544.9,12.77309011]
[1674070064974,0.13076289,1545.1,1544.9,13.77309011]
[1674070065189,0.13076289,1545.1,1544.9,12.77309011]
[1674070065818,0.13076289,1545.1,1545.0,1.0]
[1674070066433,0.13076289,1545.1,1544.9,19.24597011]
[1674070066646,0.13076289,1545.1,1545.0,3.42959701]
[1674070067205,0.13076289,1545.1,1545.0,4.42959701]
[1674070067423,0.13076289,1545.1,1545.0,3.42959701]
[1674070068775,0.13076289,1545.1,1545.0,4.42959701]
[1674070069033,0.13076289,1545.1,1545.0,3.42959701]
[1674070069812,0.13076289,1545.1,1545.0,9.90208701]
[1674070070027,0.13076289,1545.1,1545.0,10.96747712]
[1674070070762,1e-08,1545.1,1545.0,10.96747712]
[1674070072459,1e-08,1545.1,1545.0,18.94696712]
[1674070072648,1e-08,1545.1,1545.0,42.12349158]
[1674070072855,1e-08,1545.1,1545.0,38.62349158]
[1674070073406,1e-08,1545.1,1545.0,42.79914717]
[1674070073719,1e-08,1545.1,1545.0,47.79914717]
[1674070074244,1e-08,1545.1,1545.0,44.29914717]
[1674070074453,1e-08,1545.1,1545.0,43.62349158]
[1674070074669,1e-08,1545.1,1545.0,44.29908327]
[1674070074840,1e-08,1545.1,1545.0,43.62349158]
[1674070075346,0.0007629,1545.2,1545.0,50.09598158]
[1674070075551,0.0007629,1545.2,1545.1,36.32590852]
[1674070075824,0.0007629,1545.2,1545.1,36.39129863]
[1674070076134,0.0007629,1545.2,1545.1,36.96283236]
[1674070076297,0.0007629,1545.2,1545.1,43.43089466]
[1674070076981,0.0007629,1545.2,1545.1,36.60989466]
[1674070077339,0.0007629,1545.2,1545.1,40.09416448]
[1674070077658,0.0007629,1545.2,1545.1,45.09416448]
[1674070078658,0.0007629,1545.2,1545.1,44.4189791]
[1674070079248,0.0007629,1545.2,1545.1,51.2399791]
[1674070079459,0.0007629,1545.2,1545.1,44.32336448]
[1674070079878,0.0007629,1545.2,1545.1,43.6481791]
[1674070080072,0.0007629,1545.2,1545.1,52.29136448]
[1674070080408,0.0007629,1545.2,1545.1,44.7951791]
[1674070080594,0.0007629,1545.2,1545.1,36.8271791]
[1674070080809,0.0007629,1545.2,1545.1,33.63471525]
[1674070081281,0.0007629,1545.2,1545.1,32.51109466]
[1674070081456,0.0007629,1545.2,1545.1,35.32042086]
[1674070081786,0.0007629,1545.2,1545.1,32.51109466]
[1674070082004,0.0007629,1545.2,1545.1,33.63484608]
[1674070083064,0.0007629,1545.2,1545.1,25.46749093]
[1674070083276,0.0007629,1545.2,1545.1,22.46749093]
[1674070084295,0.0007629,1545.2,1545.1,9.52335093]
[1674070084500,0.0007629,1545.2,1545.1,18.46749093]
[1674070084754,0.0007629,1545.2,1545.1,27.93956093]
[1674070086798,0.0007629,1545.2,1545.1,26.93956093]
[1674070091219,1e-08,1545.3,1545.2,1.0]
[1674070091433,1e-08,1545.3,1545.2,7.47165]
[1674070091704,1e-08,1545.3,1545.2,7.53704011]
[1674070092336,1e-08,1545.3,1545.2,8.71376433]
[1674070093547,1e-08,1545.3,1545.2,15.18541433]
[1674070093852,1e-08,1545.3,1545.2,16.30913209]
[1674070094075,1e-08,1545.3,1545.2,23.35231582]
[1674070094210,1e-08,1545.3,1545.2,31.22748596]
[1674070094579,1e-08,1545.3,1545.2,45.87296357]
[1674070094942,0.13205895,1545.4,1545.3,21.29468999]
[1674070095153,0.13205895,1545.4,1545.3,31.49181306]
[1674070095367,0.13205895,1545.4,1545.3,39.75911662]
[1674070095577,5.895e-05,1545.4,1545.3,46.58011662]
[1674070095801,0.39086295,1545.7,1545.5,6.821]
[1674070096029,0.39086295,1545.7,1545.6,39.83628179]
[1674070096238,0.39086295,1545.7,1545.6,40.47320563]
[1674070096460,0.39086295,1545.7,1545.6,42.15827768]
[1674070096695,0.39086295,1545.7,1545.6,54.68873032]
[1674070096843,0.39086295,1545.7,1545.6,55.36396155]
[1674070097201,0.39086295,1545.7,1545.6,56.03919479]
[1674070097524,0.15068987,1546.0,1545.7,0.39]
[1674070097741,0.15068987,1546.0,1545.9,2.995]
[1674070098051,0.15068987,1546.0,1545.9,22.75344]
[1674070098194,0.15068987,1546.0,1545.9,26.39054944]
[1674070098409,1.0894155,1546.5,1546.0,9.46005494]
[1674070098764,1.0894155,1546.5,1546.4,20.90689]
[1674070098950,0.258675,1546.7,1546.5,6.821]
[1674070099171,0.0046979,1547.3,1546.6,30.13047]
[1674070099527,0.70910534,1547.6,1547.1,1.498]
[1674070099832,9.21799733,1547.7,1547.0,7.96996013]
[1674070099833,0.0346979,1547.7,1547.0,7.96996013]
[1674070100043,0.0346979,1547.7,1547.0,0.06539011]
[1674070100044,7.96621,1547.7,1547.0,0.06539011]
[1674070100196,2.30686871,1547.6,1546.9,11.03667011]
[1674070100404,2.30686871,1547.6,1547.0,0.57171933]
[1674070100405,0.796621,1547.6,1547.0,0.57171933]
[1674070100616,0.796621,1547.6,1546.9,5.06539011]
[1674070100617,12.92543,1547.4,1546.9,5.06539011]
[1674070100875,1.505,1547.2,1546.9,5.06539011]
[1674070101564,1.505,1547.2,1546.9,0.06539011]
[1674070101780,0.23324771,1547.1,1546.6,6.06539011]
[1674070101978,7.97113,1547.0,1546.6,6.06539011]
[1674070102188,0.23,1546.9,1546.6,6.06539011]
[1674070102666,0.23,1546.9,1546.6,0.06539011]
[1674070102823,0.23,1547.0,1546.3,10.61226011]
[1674070103028,1.0,1546.9,1546.3,13.80411524]
[1674070103298,0.00324771,1546.9,1546.4,6.46663]
[1674070103606,0.10813156,1546.9,1546.4,11.53202011]
[1674070103839,0.1851979,1547.1,1546.6,1.507]
[1674070103979,0.0346979,1547.3,1546.7,7.97216]
[1674070104186,3.30346979,1547.3,1546.7,10.12788511]
[1674070104400,3.0346979,1547.4,1546.7,10.12788511]
[1674070104607,3.0,1547.4,1546.7,21.59325511]
[1674070104874,0.30346979,1547.3,1546.7,21.59325511]
[1674070105033,3.0,1547.4,1546.8,1.505]
[1674070105237,3.0,1547.4,1546.8,14.43451]
[1674070105498,0.0346979,1547.5,1547.1,1.507]
[1674070105815,0.50741649,1547.7,1547.1,8.55643375]
[1674070105816,6.90865649,1547.7,1547.1,8.55643375]
[1674070106029,6.90865649,1547.7,1547.1,7.11482386]
[1674070106030,9.33843604,1547.7,1547.1,7.11482386]
[1674070106348,9.33843604,1547.7,1547.1,0.06539011]
[1674070106553,0.9338436,1547.6,1547.0,28.97426011]
[1674070106819,0.9338436,1547.6,1547.0,22.51047011]
[1674070107354,0.00324771,1547.5,1547.0,22.51047011]
[1674070107560,0.09695684,1547.5,1547.0,25.85864312]
[1674070109135,0.23,1547.4,1547.0,5.06539011]
[1674070109417,1.50524771,1547.3,1547.0,5.06539011]
[1674070109995,7.96818771,1547.3,1547.0,5.06539011]
[1674070110279,8.00288561,1547.3,1547.0,5.06539011]
[1674070110611,0.80028856,1547.2,1547.0,0.06539011]
[1674070110799,1.53994561,1547.3,1546.9,6.46444]
[1674070111119,0.00324771,1547.3,1546.9,6.52993011]
[1674070111287,4.60070913,1547.5,1547.0,0.65299301]
[1674070111497,4.60070913,1547.5,1547.0,7.46389]
[1674070111708,30.3046979,1547.6,1547.0,20.81440011]
[1674070111917,0.0346979,1547.6,1547.2,2.507]
[1674070112152,0.44741649,1547.7,1547.3,12.92564]
[1674070112354,0.44741649,1547.7,1547.3,8.61774911]
[1674070112571,14.87003649,1547.7,1547.3,0.06539011]
[1674070112747,14.90473439,1547.7,1547.1,6.52878011]
[1674070112967,10.57987083,1547.7,1547.3,6.46284]
[1674070113200,10.57987083,1547.7,1547.3,6.52823011]
[1674070114167,10.57987083,1547.7,1547.3,0.06539011]
[1674070114446,9.07987083,1547.7,1547.3,7.46278]
[1674070114614,9.07987083,1547.7,1547.3,6.52817011]
[1674070114937,6.94331439,1547.7,1547.3,8.47359012]
[1674070115129,0.48211439,1547.7,1547.3,28.22033012]
[1674070115288,0.18892349,1547.7,1547.6,1.507]
[1674070115657,0.18892349,1547.7,1547.6,14.58092]
[1674070115874,1e-08,1547.7,1547.6,14.64631011]
[1674070116084,1e-08,1547.7,1547.6,21.10792011]
[1674070116451,1e-08,1547.7,1547.6,14.64631011]
[1674070116814,1e-08,1547.7,1547.6,0.06539011]
[1674070116969,1e-08,1547.7,1547.5,5.06539011]
[1674070117610,1e-08,1547.7,1547.5,0.06539011]
[1674070117986,1e-08,1547.7,1547.4,6.46244]
[1674070118302,1e-08,1547.7,1547.4,2.00091316]
[1674070118463,1e-08,1547.7,1547.3,31.31808387]
[1674070119020,1e-08,1547.7,1547.3,30.73209012]
[1674070119706,1e-08,1547.7,1547.3,37.19496012]
[1674070119924,1e-08,1547.7,1547.3,38.70196012]
[1674070120129,1e-08,1547.7,1547.5,6.46203]
[1674070120332,1e-08,1547.7,1547.5,12.98945011]
[1674070120542,1e-08,1547.7,1547.5,14.48245011]
[1674070121014,1e-08,1547.7,1547.5,8.02042011]
[1674070121382,1e-08,1547.7,1547.5,14.48245011]
[1674070121594,1e-08,1547.7,1547.6,1.44824501]
[1674070122290,1e-08,1547.7,1547.5,14.48245011]
[1674070122453,1e-08,1547.7,1547.5,0.06539011]
[1674070122644,1e-08,1547.7,1547.4,0.58599375]
[1674070123180,1e-08,1547.7,1547.3,23.83091011]
[1674070123388,21.3254468,1547.7,1547.3,5.65138386]
[1674070123592,21.3254468,1547.7,1547.3,5.06539011]
[1674070123593,22.8671447,1547.7,1547.3,5.06539011]
[1674070123927,19.38609,1547.5,1547.3,5.06539011]
[1674070124240,21.5093969,1547.5,1547.3,5.06539011]
[1674070124453,21.51264461,1547.5,1547.3,5.06539011]
[1674070124548,21.51264461,1547.5,1547.3,0.06539011]
[1674070124770,21.51264461,1547.5,1547.1,5.06539011]
[1674070125068,1.17662204,1547.4,1547.1,5.06539011]
[1674070125443,19.38861,1547.3,1547.1,5.06539011]
[1674070125610,19.4233079,1547.3,1547.1,0.06539011]
[1674070125958,19.4233079,1547.3,1546.9,5.06539011]
[1674070126167,21.63412567,1547.3,1546.9,5.06539011]
[1674070127666,0.0346979,1547.3,1546.9,11.52992011]
[1674070127793,12.96325561,1547.4,1546.9,11.52992011]
[1674070128237,19.42605561,1547.4,1546.9,11.52992011]
[1674070128567,19.42605561,1547.4,1547.0,6.15299201]
[1674070128875,19.42605561,1547.4,1547.0,6.21838212]
[1674070129429,0.0346979,1547.4,1547.1,1.507]
[1674070129720,0.0346979,1547.6,1547.2,14.43156]
[1674070129809,6.49623791,1547.7,1547.3,10.905906]
[1674070130067,0.03469791,1547.7,1547.3,23.89703611]
[1674070130248,1e-08,1547.7,1547.4,2.38970361]
[1674070130461,1e-08,1547.7,1547.4,15.31424361]
[1674070130675,1e-08,1547.7,1547.4,15.37963372]
[1674070131532,1e-08,1547.7,1547.4,23.34908372]
[1674070131919,1e-08,1547.7,1547.5,0.84505845]
[1674070132320,1e-08,1547.7,1547.5,7.30688845]
[1674070132559,1e-08,1547.7,1547.5,8.37227856]
[1674070132765,1e-08,1547.7,1547.5,13.83430856]
[1674070133196,1e-08,1547.7,1547.6,1.0]
[1674070133422,1e-08,1547.7,1547.6,16.58321201]
[1674070133639,1e-08,1547.7,1547.6,17.23459587]
[1674070134333,1e-08,1547.7,1547.6,23.69620587]
[1674070134595,1e-08,1547.7,1547.6,28.69620587]
[1674070135388,1e-08,1547.7,1547.6,27.11021212]
[1674070135556,1e-08,1547.7,1547.6,14.18699212]
[1674070135766,1e-08,1547.7,1547.6,5.06539011]
[1674070136418,1e-08,1547.7,1547.6,0.06539011]
[1674070136622,1e-08,1547.7,1547.5,5.06539011]
[1674070137278,6.46129001,1547.7,1547.5,5.06539011]
[1674070137484,6.49598791,1547.7,1547.5,0.06539011]
[1674070137705,6.49598791,1547.7,1547.4,2.38970361]
[1674070138621,0.03469791,1547.7,1547.5,0.23897036]
[1674070138846,1e-08,1547.7,1547.5,0.23897036]
[1674070139449,1e-08,1547.7,1547.5,5.23897036]
[1674070139663,1e-08,1547.7,1547.5,11.76639047]
[1674070139934,1e-08,1547.7,1547.6,1.17663905]
[1674070140453,1e-08,1547.7,1547.5,11.76639047]
[1674070140810,1e-08,1547.7,1547.5,5.30436047]
[1674070141340,1e-08,1547.7,1547.5,5.06539011]
[1674070141702,19.38363001,1547.7,1547.5,0.06539011]
[1674070141920,19.41632791,1547.7,1547.4,5.06539011]
[1674070142225,19.42157562,1547.7,1547.4,5.06539011]
[1674070142598,19.38609,1547.5,1547.4,5.06539011]
[1674070142923,19.4207879,1547.5,1547.4,5.06539011]
[1674070143458,19.4207879,1547.5,1547.4,0.06539011]
[1674070143670,19.4207879,1547.5,1547.0,22.23678011]
[1674070144390,6.4967279,1547.5,1547.1,1.0]
[1674070144635,0.0346979,1547.5,1547.3,6.46287]
[1674070144805,6.49590791,1547.7,1547.3,8.02626011]
[1674070145015,6.49590791,1547.7,1547.4,0.80262601]
[1674070145255,6.49590791,1547.7,1547.4,1.80262601]
[1674070145598,6.49590791,1547.7,1547.4,0.80262601]
[1674070145765,0.03469791,1547.7,1547.4,8.77004601]
[1674070145964,1e-08,1547.7,1547.5,0.8770046]
[1674070146535,1e-08,1547.7,1547.5,6.8770046]
[1674070146769,1e-08,1547.7,1547.5,6.94239471]
[1674070147444,1e-08,1547.7,1547.5,8.40422471]
[1674070147640,1e-08,1547.7,1547.6,2.34142247]
[1674070147863,1e-08,1547.7,1547.6,8.80303247]
[1674070148225,1e-08,1547.7,1547.6,9.86842258]
[1674070148582,1e-08,1547.7,1547.6,8.86842258]
[1674070149223,1e-08,1547.7,1547.6,7.36742258]
[1674070149679,1e-08,1547.7,1547.6,0.06539011]
[1674070149905,6.46120001,1547.7,1547.5,5.06539011]
[1674070150056,6.49589791,1547.7,1547.5,5.06539011]
[1674070153319,12.95709791,1547.7,1547.5,5.06539011]
[1674070153527,12.95709791,1547.7,1547.5,0.06539011]
[1674070153708,12.95709791,1547.7,1547.4,12.08028386]
[1674070153922,12.95709791,1547.7,1547.4,14.23901225]
[1674070155747,0.03469791,1547.7,1547.4,14.23901225]
[1674070155916,1e-08,1547.7,1547.4,14.23901225]
[1674070156466,1e-08,1547.7,1547.5,1.0]
[1674070159123,1e-08,1547.7,1547.4,33.67085225]
[1674070159293,1e-08,1547.7,1547.5,3.36708523]
[1674070159503,1e-08,1547.7,1547.5,4.36708523]
[1674070160177,1e-08,1547.7,1547.5,3.36708523]
[1674070160381,1e-08,1547.7,1547.5,4.36708523]
[1674070160601,1e-08,1547.7,1547.4,17.08028386]
[1674070160925,12.92254001,1547.7,1547.4,17.08028386]
[1674070161118,12.95723791,1547.7,1547.5,1.0]
[1674070161337,0.03469791,1547.7,1547.5,1.0]
[1674070161505,0.03469791,1547.7,1547.6,1.979]
[1674070161506,1e-08,1547.7,1547.6,1.979]
[1674070162242,1e-08,1547.7,1547.6,8.44061]
[1674070162452,1e-08,1547.7,1547.6,8.50600011]
[1674070162676,1e-08,1547.7,1547.6,13.50600011]
[1674070166081,1e-08,1547.7,1547.6,39.49421386]
[1674070166395,1e-08,1547.7,1547.6,39.72421386]
[1674070166607,1e-08,1547.7,1547.6,43.22421386]
[1674070166995,1e-08,1547.7,1547.6,39.72421386]
[1674070167252,1e-08,1547.7,1547.6,43.22421386]
[1674070167456,1.0894155,1548.0,1547.7,5.994]
[1674070167457,0.00041551,1548.0,1547.7,5.994]
[1674070167711,0.00041551,1548.0,1547.9,33.99444]
[1674070167863,0.00041551,1548.0,1547.9,34.05983011]
[1674070168072,0.00041551,1548.0,1547.9,37.87582386]
[1674070168302,0.00041551,1548.0,1547.9,39.28431254]
[1674070168532,0.00041551,1548.0,1547.9,44.28431254]
[1674070168863,0.00041551,1548.0,1547.9,16.52023254]
[1674070169023,0.00041551,1548.0,1547.9,15.93423879]
[1674070169381,0.00041551,1548.0,1547.9,29.44095254]